Cogmind - Beta 9.2 @@@ ROGUE MODE // 2019.11.27 @ 21:26:25 Player: Cassie Rose Result: Destroyed by G-34 Mercenary with Small Laser Performance ------------- Evolutions (1) 500 Regions Visited (2) 400 Robots Destroyed (64) 320 Value Destroyed (1278) 1278 Prototype IDs (3) 60 Alien Tech Used (0) 0 Bonus (22) 22 TOTAL SCORE: 2580 Bonus ------- High Alert Combat Kills 22 Cogmind --------- Core Integrity 0/400 Matter 281/300 Energy 265/265 System Corruption 0% Temperature Cool (6) Movement Rolling (110) Ox1 Location -9/Materials Parts ------- > --- POWER (1) -------- Improved Ion Engine > --- PROPULSION (3) --- Compact Wheel > --- UTILITY (3) ------ Improved Heat Sink Large Storage Unit Signal Interpreter > --- WEAPON (2) ------- Improved Assault Rifle > --- INVENTORY (10) --- Medium Storage Unit High-capacity Battery (400) Weight Redist. System Weight Redist. System Weight Redist. System Improved Sensor Array Improved Terrain Scanner Light Armor Plating Light Armor Plating Trap Extractor Peak State ------------ > --- POWER ------------ Improved Ion Engine > --- PROPULSION ------- Compact Wheel Compact Wheel Compact Wheel > --- UTILITY ---------- Improved Heat Sink Large Storage Unit Signal Interpreter > --- WEAPON ----------- Advanced Beam Cannon Improved Assault Rifle > --- INVENTORY -------- Light Ion Engine Medium Storage Unit High-capacity Battery Weight Redist. System Improved Sensor Array Improved Terrain Scanner Transport Network Coupler Light Armor Plating Trap Extractor Light Assault Rifle [Rating: 17] Favorites ----------- Power Light Ion Engine Engine Light Ion Engine Propulsion Aluminum Leg Leg Aluminum Leg Wheel Compact Wheel Hover Unit Backup Propulsion I Utility Large Storage Unit Device Improved Heat Sink Storage Large Storage Unit Processor Signal Interpreter Protection Hardened Light Armor Plating Weapon Light Assault Rifle Energy Gun EM Pulse Gun Energy Cannon Advanced Beam Cannon Ballistic Gun Light Assault Rifle Ballistic Cannon Light Cannon Special Melee Weapon Improved Datajack Build | -11 -10 -9 ------- Run | Scr Mat Mat Slots Evolved 2 | . . 2 Power . | . . . Propulsion 1 | . . 1 Utility 1 | . . 1 Weapon . | . . . Parts Attached 50 | 8 21 21 Power 14 | 2 5 7 Engine 14 | 2 5 7 Core . | . . . Reactor . | . . . Propulsion 13 | 3 4 6 Treads . | . . . Leg 7 | . 4 3 Wheel 6 | 3 . 3 Hover . | . . . Flight . | . . . Utility 7 | 2 3 2 Device 1 | . . 1 Storage 4 | 2 2 . Processor 1 | . 1 . Hackware . | . . . Protection 1 | . . 1 Artifact . | . . . Weapon 16 | 1 9 6 Energy Gun 3 | 1 2 . Energy Cannon 1 | . . 1 Ballistic Gun 8 | . 4 4 Ballistic Cannon 3 | . 3 . Launcher . | . . . Special Weapon . | . . . Impact Weapon . | . . . Slashing Weapon . | . . . Piercing Weapon . | . . . Special Melee Weapon 1 | . . 1 Unidentified Prototypes 3 | . . 3 Parts Lost 22 | . 10 12 Power 6 | . 3 3 Propulsion 7 | . 2 5 Utility 1 | . . 1 Weapon 8 | . 5 3 Highest Loss Streak 4 | . 4 3 Average Slot Usage (%) 90 | . 85 93 Engine 10 | . 12 8 Leg 15 | . 8 20 Wheel 9 | . 9 10 Device 4 | . . 7 Storage 17 | . 27 11 Processor 6 | . . 11 Protection 1 | . . 2 Energy Gun 1 | . 2 . Energy Cannon 3 | . . 6 Ballistic Gun 11 | . 12 11 Ballistic Cannon 6 | . 10 3 Naked Turns . | . . . Heaviest Build 31 | 15 31 31 Greatest Support 48 | 32 32 48 Greatest Overweight (x) 10 | . 5 10 Average Overweight (x) . | . 1 . Largest Inventory Capacity 14 | 8 14 10 Average Capacity 9 | 6 9 10 Most Carried 10 | 5 9 10 Average Carried 7 | 2 6 8 Final Capacity 10 | 8 10 10 Final Carried 10 | 4 8 10 Class Distribution -------------------- 50% | Mutant 49% | Scavenger-Mutant Dominant Class ---------------- Mutant | -10/Materials Scavenger-Mutant | -9/Materials Resources | -11 -10 -9 ----------- Run | Scr Mat Mat Matter Collected 1291 | 262 279 750 Remotely . | . . . Salvage Created 1730 | 139 578 1013 Parts 143 | 12 54 77 Haulers Intercepted 4 | . 1 3 Recyclers Shooed . | . . . Parts Field Recycled . | . . . Retrieved Matter . | . . . Parts Self-Destructed . | . . . Prevented . | . . . Kills | -11 -10 -9 ------- Run | Scr Mat Mat Combat Hostiles Destroyed 51 | . 21 30 Guns 23 | . 13 10 Cannons 28 | . 8 20 Classes Destroyed 9 | 2 4 3 Worker 1 | . . 1 Builder 1 | . 1 . Tunneler 4 | 3 1 . Hauler 4 | . 1 3 Recycler 1 | 1 . . Watcher 2 | . . 2 Swarmer 27 | . 12 15 Grunt 18 | . 9 9 Sentry 6 | . . 6 Best Kill Streak 7 | 2 7 5 Combat Bots Only 6 | . 6 4 Max Kills in Single Turn 1 | 1 1 1 Gunslinging . | . . . Exploded . | . . . Melee . | . . . Uniques/NPCs Destroyed . | . . . Combat | -11 -10 -9 -------- Run | Scr Mat Mat Damage Taken 2892 | 26 1236 1630 Core 651 | . 244 407 Absorbed by Shields . | . . . Core Remaining (%) 51 | 100 2 . Volleys Fired 223 | 9 90 124 Largest 2 | 1 2 2 Hottest 91 | 40 75 91 Shots Fired 405 | 9 169 227 Gun 271 | 9 127 135 Cannon 134 | . 42 92 Launcher . | . . . Special . | . . . Kinetic 326 | . 143 183 Thermal 65 | . 21 44 Explosive . | . . . Electromagnetic 14 | 9 5 . Robot Hit Streak 18 | 6 18 13 Robot Miss Streak 7 | 1 7 4 Penetration Max . | . . . Secondary Targets 3 | . 3 . Max Gunslinging Chain 1 | . 1 . Shots Hit Robots 237 | 7 89 141 Core Hits 98 | 5 42 51 Critical Hits 7 | . 2 5 Critical Kills 1 | . 1 . Critical Parts Destroyed 6 | . 1 5 Melee Attacks . | . . . Impact . | . . . Slashing . | . . . Piercing . | . . . Sneak Attacks . | . . . Combat Hostiles . | . . . Follow-up Attacks . | . . . Damage Inflicted 2941 | 128 877 1936 Guns 1505 | 102 589 814 Cannons 1408 | . 286 1122 Explosions 26 | 26 . . Melee . | . . . Ramming 2 | . 2 . Kinetic 2122 | . 763 1359 Thermal 703 | 26 100 577 Explosive . | . . . Electromagnetic 114 | 102 12 . Impact . | . . . Slashing . | . . . Piercing . | . . . Highest Corruption 2 | . 2 . Average Corruption 1 | . 1 . Corruption Purged . | . . . Effects 2 | . 2 . Message Errors 2 | . 2 . Overload Shots . | . . . Overflow Damage 5 | . . 5 Projectiles 5 | . . 5 Explosions . | . . . Melee . | . . . Knockbacks 4 | . 1 3 Impact . | . . . Kinetic 4 | . 1 3 Secondary . | . . . Self-Inflicted Damage 27 | 26 1 . Shots 1 | 1 . . Rammed 1 | . 1 . Targets Rammed 1 | . 1 . Kicked . | . . . Crushed . | . . . Highest Temperature 141 | 20 101 141 Average Temperature 35 | 16 22 48 Received Heat Transfer 618 | . 222 396 Siege Activations . | . . . Robots Corrupted . | . . . Combat Hostiles . | . . . Parts Fried . | . . . Impact Corruptions . | . . . Robots Melted . | . . . Combat Hostiles . | . . . Parts Melted 3 | . . 3 Heat Transferred 1311 | 50 225 1036 Parts Sabotaged . | . . . Parts Stolen . | . . . Parts Stripped . | . . . Power Chain Reactions 1 | 1 . . Missiles Intercepted . | . . . Alert | -11 -10 -9 ------- Run | Scr Mat Mat Peak Influence 412 | 20 356 412 Average Influence 206 | 8 168 244 Maximum Alert Level 2 | . 1 2 Low Security (%) 52 | 100 79 32 Level 1 42 | . 20 58 Level 2 5 | . . 9 Level 3 . | . . . Level 4 . | . . . Level 5 . | . . . High Security . | . . . Max Security . | . . . Squads Dispatched 5 | . 4 1 Investigation 2 | . 1 1 Extermination . | . . . Reinforcement 3 | . 3 . Assault . | . . . Garrison . | . . . Intercept . | . . . Construction Impeded . | . . . Haulers Reinforced . | . . . Stealth | -11 -10 -9 --------- Run | Scr Mat Mat Distress Signals 4 | . 2 2 Communications Jammed . | . . . Distress Signals . | . . . Times Spotted 81 | . 36 45 Peak Tracking Total 5 | . 5 5 Tactical Retreats 8 | . 5 3 Traps | -11 -10 -9 ------- Run | Scr Mat Mat Traps Triggered 2 | . 2 . Indirectly . | . . . Trap Hack Attempts . | . . . Triggered . | . . . Disarmed . | . . . Reprogrammed . | . . . Reused . | . . . Traps Extracted . | . . . Installed . | . . . Triggered . | . . . Machines | -11 -10 -9 ---------- Run | Scr Mat Mat Machines Disabled 2 | . 2 . Max in Single Turn 1 | . 1 . Machines Sabotaged . | . . . Garrisons Compromised . | . . . Overloaded Fab Kills . | . . . Fab Network Shutdowns . | . . . Hacking | -11 -10 -9 --------- Run | Scr Mat Mat Machines Accessed 11 | . 4 7 Terminals 10 | . 3 7 Fabricators . | . . . Repair Stations 1 | . 1 . Recycling Units . | . . . Scanalyzers . | . . . Garrison Access . | . . . Total Hacks 37 | . 13 24 Successful 28 | . 12 16 Failed 9 | . 1 8 Catastrophic . | . . . Database Lockouts . | . . . Manual 34 | . 10 24 Terminals 34 | . 10 24 Fabricators . | . . . Repair Stations 3 | . 3 . Recycling Units . | . . . Scanalyzers . | . . . Garrison Access . | . . . Terminal Hacks 2 | . 2 . Zone Layout 2 | . 2 . Fabricator Hacks . | . . . Repair Station Hacks 3 | . 3 . Scan Component 1 | . 1 . Repair 1 | . 1 . Refit 1 | . 1 . Recycling Unit Hacks . | . . . Scanalyzer . | . . . Garrison Access Hacks . | . . . Unauthorized Hacks 52 | . 15 37 Terminals 23 | . 7 16 Assimilate 8 | . 3 5 Botnet 10 | . 3 7 Operators 5 | . 1 4 Fabricators . | . . . Repair Stations . | . . . Recycling Units . | . . . Scanalyzers . | . . . Garrison Access . | . . . Data Cores Recovered . | . . . Used . | . . . Hacking Detections 8 | . 3 5 Full Trace Events 2 | . 1 1 Feedback Events . | . . . Feedback Blocked . | . . . Robot Schematics Acquired . | . . . Robots Built . | . . . Matter . | . . . Time . | . . . Total Robot Build Rating . | . . . Part Schematics Acquired . | . . . Parts Built . | . . . Matter . | . . . Time . | . . . Total Part Build Rating . | . . . Parts Repaired 1 | . 1 . Time 36 | . 36 . Parts Recycled . | . . . Recycled Matter . | . . . Retrieved Matter . | . . . Retrieved Components . | . . . Parts Scanalyzed . | . . . Part Schematics Acquired . | . . . Parts Damaged . | . . . Bothacking | -11 -10 -9 ------------ Run | Scr Mat Mat Used RIF Installer . | . . . Robots Hacked . | . . . Non-combat . | . . . Combat . | . . . Robot Hacks Applied . | . . . Relay Couplers Released . | . . . Robots Rewired . | . . . Allies Hacked . | . . . Hacks Repelled . | . . . Allies | -11 -10 -9 -------- Run | Scr Mat Mat Total Allies . | . . . Largest Group . | . . . Highest-Rated Group . | . . . Highest-Rated Ally . | . . . Total Orders . | . . . Ally Attacks . | . . . Total Damage . | . . . Kills . | . . . Allies Corrupted . | . . . Allies Melted . | . . . Intel | -11 -10 -9 ------- Run | Scr Mat Mat Robot Analysis Total . | . . . Derelict Logs Recovered . | . . . Drone Launches . | . . . Drone Recoveries . | . . . Exploration | -11 -10 -9 ------------- Run | Scr Mat Mat Turns Passed 3169 | 122 1190 1857 Spaces Moved 1794 | 84 527 1183 Core 136 | 1 134 1 Treads . | . . . Legs 868 | . 183 685 Wheels 790 | 83 210 497 Hover . | . . . Flight . | . . . Fastest Speed 50 | 50 100 100 Average Speed 126 | 99 156 114 Slowest Speed 550 | 100 300 550 Overloaded Moves . | . . . Propulsion Burnouts . | . . . Robots Hopped . | . . . Cave-ins Triggered . | . . . Exploration Rate (%) 45 | 4 58 73 Regions Visited 2 Branch Regions . Pre-discovered Areas . | . . . Known Exits Taken 1 | . 1 . Unknown Exits Taken 1 | 1 . . Scrap Searched . | . . . Spaces Dug . | . . . Terrain Destroyed . | . . . Melee . | . . . Projectile . | . . . AOE . | . . . Actions | -11 -10 -9 --------- Run | Scr Mat Mat Total 2326 | 115 740 1471 Wait 182 | . 73 109 Move 1792 | 83 526 1183 Hop . | . . . Pick Up 54 | 12 21 21 Fast Attach 4 | . . 4 Attach 25 | 6 12 7 Detach 1 | . 1 . Swap 21 | 2 9 10 Drop 23 | 3 7 13 Fire 223 | 9 90 124 Melee . | . . . Ram . | . . . Kick 1 | . 1 . Crush . | . . . Escape Stasis . | . . . Rewire . | . . . Trap . | . . . Miscellaneous . | . . . Route ------- -11/Scrapyard -10/Materials (discovered 2 exits: *Mat x2) -9/Materials (discovered 4 exits: *Mat x2 / [*Min] / *Sto) History --------- Turn | Location | Event 9 | -11/Scrapyard | Discovered new exit (range 15) 123 | -11/Scrapyard | Entered Materials 350 | -10/Materials | Discovered new exit (range 15) 554 | -10/Materials | Core integrity fell below 50% 584 | -10/Materials | Core integrity fell below 20% 607 | -10/Materials | Lost 4 parts (1p1n2w) 674 | -10/Materials | Discovered new exit (range 10) 758 | -10/Materials | Build established: Mutant 1254 | -10/Materials | Repaired Aluminum Leg 1311 | -10/Materials | Identified exit to Materials 1313 | -10/Materials | Entered another Materials area 1313 | -9/Materials | Evolved 2 slots: Propulsion x1, Utility x1 1556 | -9/Materials | Discovered new exit (range 11) 1566 | -9/Materials | Build established: Scavenger-Mutant 1731 | -9/Materials | Identified exit to Storage 1866 | -9/Materials | Discovered new exit (range 6) 1924 | -9/Materials | Identified exit to Materials 1967 | -9/Materials | Core integrity fell below 50% 2369 | -9/Materials | Discovered exit to Materials (range 3) 2701 | -9/Materials | Discovered new exit (range 16) 2860 | -9/Materials | Build established: Mutant 3067 | -9/Materials | Core integrity fell below 20% 3170 | -9/Materials | Destroyed by G-34 Mercenary with Small Laser Last Messages --------------- >>Trojan(Operators) Trojan loaded successfully. Testing... Operator tracking enabled and active. 02993_ C-30 ARC bursts open, deploying its payload. 02993_ S-10 Pest unfolds itself. 03004_ S-10 Pest destroyed. 03007_ Acquired 12 matter. 03038_ Adv. Beam Cannon destroyed. 03046_ S-10 Pest destroyed. 03072_ Y-45 Defender destroyed. 03080_ Acquired 24 matter. 03095_ Acquired Weight Redist. System. 03153_ C-30 ARC bursts open, deploying its payload. 03153_ L-31 Rogue unfolds itself. 03153_ G-34 Mercenary unfolds itself. 03154_ Door malfunctions. 03156_ U-05 Engineer repairs door. 03161_ Imp. Datajack destroyed. 03163_ Com. Wheel destroyed. Map ----- +----------------------------------------------------+ | | | | | | | | | | | | | | | | | | | | | | | | | | | | | ?????????????#####################??????????###### | | ?????????????# # #????####### | | #????????????# # #???? # | | ############## # #???# """ # "" | | + # #???# """ #= "" | | # ####+########## """ # "" | | ^ # + + # | | """ """ + ### # !# | | """ """ #### #?# ##+#########+ | | """ """ "#?#####+###+### | | """ """ T#????# g | | """ """ "#????# u @l | | ##?# ######### % ###+ | | #??# #??????####### ########## # | | ######T###??# #??????# #?# #????????# # | | #########????# #??????# ###+########## # "" | | ## #????# #??????# # # # "" | | ## #????# # ####### # # # "" | | # !! #????+ # # """"""" # # | | + !! #????# # + """"""" # ^ # | | =# !! #????#?# # """"""" # ## | | ## #??????# ####### # """"""" # ##### | | #########??????## ##?????# # """"""" # + | | #???????????????# ???????# # # # | | #???????????????# ???????+ ###########%[ # | | ###########?????? ???????# * # | | ## #????????????????# + | | ## """ #????????????????# # | | ## """ #????????????????##+################ | | ## """ #??????????????????????????????????# | | #[ #??????????????????????????????????# | | + """ #??????????????????????????????????##### | | ## """ #??????????????????????????????????????? | | ## """ #??????????????????????????????????????? | | ## #??????????????????????????????????????? | | ###########??????????????????????????????????????? | +----------------------------------------------------+ Best States ------------- Heat Dissipation 42 Energy Generation 14 Energy Capacity 280 Matter Stores 300 Matter Capacity 300 Sight Range 16 Terrain Scan Density 10 Armor Coverage 150 Evasion (%) 40 Item Schematics ----------------- None Robot Schematics ------------------ None Fabricated ------------ Nothing Alien Tech Used ----------------- None Achievements -------------- None Challenges ------------ None Game ------ Seed HardcellTargetingShredder Manual? 0 Play Time 00:35:32 Cumulative 40.4 hours Start 2019.11.27 @ 20:50:47 End 2019.11.27 @ 21:26:25 Sessions 1 Manual Loads 0 Difficulty Rogue Special Mode None Game No. 56 Rogue 56 Adventurer 0 Explorer 0 Win Type - Total 0 Types 0/0/0/0/0/0/0 Lore% 21 Gallery% 20 Achievement% 21 Wizard Run 0 Options --------- ASCII 0 Keyboard 0 Movement Arrows Keybinds 0 Fullscreen 1 Font 18/SmallcapsGlow Map View 76x50 Tactical HUD 1 Map Filters NONE Filters LOW_CONTRAST(13,24,33)|BRIGHTNESS(120)|SATURATION(80) Steam 1 RUN: 14fbe615-dad7-4db4-ba54-99004943f7f9